fUST/lending_fUST_20240629
["ID","MTS","AMOUNT","RATE_DAILY","PERIOD"]
[330602660,1719609091409,-166.666666,0.00026002,2]
[330602661,1719609091419,-6356.54,0.00026027,4]
[330602662,1719609091428,-500.0,0.00026027,2]
[330602663,1719609091437,-309.84359864,0.00026027,4]
[330602664,1719609091446,-1053.33,0.00026027,4]
[330602665,1719609091455,-500.0,0.00026027,4]
[330602666,1719609091464,-581.35,0.00026027,4]
[330602667,1719609091475,-199.53791584,0.00026027,4]
[330602668,1719609091484,-2317.09,0.00026027,4]
[330602669,1719609091493,-922.96,0.00026027,4]
[330602670,1719609091502,-834.68,0.00026027,4]
[330602671,1719609091511,-500.0,0.00026027,4]
[330602672,1719609091520,-500.0,0.00026027,4]
[330602673,1719609091529,-803.38,0.00026027,4]
[330602674,1719609091538,-500.0,0.00026027,4]
[330602675,1719609091547,-1513.65,0.00026027,4]
[330602676,1719609091556,-173.61765429,0.00026027,4]
[330602677,1719609091565,-969.26,0.00026027,4]
[330602678,1719609091575,-1279.12,0.00026027,4]
[330602679,1719609091583,-580.44,0.00026027,4]
[330602680,1719609091592,-750.55,0.00026027,4]
[330602681,1719609091601,-527.85,0.00026027,4]
[330602682,1719609091610,-762.9,0.00026027,4]
[330602683,1719609091620,-500.0,0.00026027,4]
[330602684,1719609091628,-500.0,0.00026027,4]
[330602685,1719609091637,-794.3,0.00026027,4]
[330602686,1719609091646,-500.0,0.00026027,4]
[330602687,1719609091655,-526.04,0.00026027,4]
[330602688,1719609091664,-819.47,0.00026027,4]
[330602689,1719609091673,-905.98,0.00026027,4]
[330602690,1719609091682,-500.0,0.00026027,4]
[330602691,1719609091691,-1589.77,0.00026027,4]
[330602692,1719609091701,-1414.16,0.00026027,4]
[330602693,1719609091710,-514.41,0.00026027,4]
[330602694,1719609091720,-500.0,0.00026027,4]
[330602695,1719609091730,-549.62,0.00026027,4]
[330602696,1719609091739,-1020.77,0.00026027,4]
[330602697,1719609091749,-2333.86,0.00026027,4]
[330602698,1719609091758,-718.41,0.00026027,4]
[330602699,1719609091767,-632.14,0.00026027,4]
[330602700,1719609091776,-2254.28,0.00026027,4]
[330602701,1719609091786,-1134.77,0.00026027,4]
[330602702,1719609091795,-161.68452748,0.00026027,4]
[330602703,1719609091805,-552.34,0.00026027,4]
[330602704,1719609091814,-655.59,0.00026027,4]
[330602705,1719609091823,-500.0,0.00026027,4]
[330602706,1719609091832,-500.0,0.00026027,4]
[330602707,1719609091841,-1584.44,0.00026027,4]
[330602708,1719609091850,-705.63,0.00026027,4]
[330602709,1719609091859,-992.69,0.00026027,4]
[330602710,1719609091869,-963.94,0.00026027,4]
[330602711,1719609091878,-2618.52,0.00026027,4]
[330602712,1719609091887,-775.03,0.00026027,4]
[330602713,1719609091896,-500.0,0.00026027,4]
[330602714,1719609091905,-649.91291509,0.00026027,4]
[330602715,1719609091915,-1047.09,0.00026027,4]
[330602716,1719609091924,-597.64,0.00026027,4]
[330602717,1719609091933,-500.0,0.00026027,4]
[330602718,1719609091942,-619.46,0.00026027,4]
[330602719,1719609091951,-1602.1,0.00026027,4]
[330602720,1719609091960,-500.0,0.00026027,4]
[330602721,1719609091969,-1252.86,0.00026027,4]
[330602722,1719609091978,-748.7,0.00026027,4]
[330602723,1719609091987,-725.68,0.00026027,4]
[330602724,1719609091997,-534.09094563,0.00026027,4]
[330602725,1719609092007,-3105.39,0.00026027,4]
[330602726,1719609092020,-500.0,0.00026027,4]
[330602727,1719609092029,-1391.86,0.00026027,4]
[330602728,1719609092039,-500.0,0.00026027,4]
[330602729,1719609092048,-1221.39,0.00026027,4]
[330602730,1719609092061,-598.89,0.00026027,4]
[330602731,1719609092071,-761.97,0.00026027,4]
[330602732,1719609092081,-500.0,0.00026027,4]
[330602733,1719609092094,-1916.95,0.00026027,4]
[330602734,1719609092104,-500.0,0.00026027,4]
[330602735,1719609092113,-911.28,0.00026027,4]
[330602736,1719609092122,-500.0,0.00026027,4]
[330602737,1719609092131,-500.0,0.00026027,4]
[330602738,1719609092141,-1274.5,0.00026027,2]
[330602739,1719609092150,-786.07,0.00026027,4]
[330602740,1719609092159,-2096.46,0.00026027,4]
[330602741,1719609092169,-3430.95,0.00026027,4]
[330602742,1719609092178,-1472.43,0.00026027,4]
[330602743,1719609092187,-500.0,0.00026027,4]
[330602744,1719609092197,-713.1,0.00026027,4]
[330602745,1719609092206,-1080.39,0.00026027,4]
[330602746,1719609092216,-32522.18,0.00026027,4]
[330602747,1719609092228,-2759.26,0.00026027,4]
[330602748,1719609092237,-1561.25,0.00026027,4]
[330602749,1719609092246,-1056.09,0.00026027,4]
[330602750,1719609092255,-626.89,0.00026027,4]
[330602751,1719609092264,-644.23,0.00026027,4]
[330602752,1719609092274,-919.74,0.00026027,4]
[330602753,1719609092283,-526.73,0.00026027,4]
[330602754,1719609092392,-500.0,0.00026027,4]
[330602755,1719609092402,-900.52,0.00026027,4]
[330602756,1719609092411,-2915.15,0.00026027,4]
[330602757,1719609092420,-1075.26,0.00026027,4]
[330602758,1719609092429,-2606.56,0.00026027,4]
[330602759,1719609092438,-898.0,0.00026027,4]
[330602760,1719609092447,-1017.0,0.00026027,4]
[330602761,1719609092456,-500.0,0.00026027,4]
[330602762,1719609092467,-769.17,0.00026027,4]
[330602763,1719609092477,-724.43,0.00026027,4]
[330602764,1719609092486,-500.0,0.00026027,4]
[330602765,1719609092495,-1811.19,0.00026027,4]
[330602766,1719609092504,-474.79441253,0.00026027,4]
[330602767,1719609092513,-555.14,0.00026027,4]
[330602768,1719609092522,-745.75,0.00026027,4]
[330602769,1719609092531,-1060.47,0.00026027,4]
[330602770,1719609092540,-1646.45,0.00026027,4]
[330602771,1719609092549,-561.23,0.00026027,4]
[330602772,1719609092558,-1636.48,0.00026027,4]
[330602773,1719609092568,-2903.41,0.00026027,4]
[330602774,1719609092577,-500.0,0.00026027,4]
[330602775,1719609092587,-1643.03,0.00026027,4]
[330602776,1719609092595,-882.01,0.00026027,4]
[330602777,1719609092605,-23113.58,0.00026027,4]
[330602778,1719609092615,-628.52,0.00026027,4]
[330602779,1719609092624,-1414.53,0.00026027,4]
[330602780,1719609092633,-500.0,0.00026027,4]
[330602781,1719609092643,-500.0,0.00026027,4]
[330602782,1719609092652,-500.0,0.00026027,4]
[330602783,1719609092661,-555.85,0.00026027,4]
[330602784,1719609092670,-11320.71,0.00026027,4]
[330602785,1719609092679,-644.76,0.00026027,4]
[330602786,1719609092690,-585.25,0.00026027,4]
[330602787,1719609092699,-756.94,0.00026027,4]
[330602788,1719609092708,-1188.67,0.00026027,4]
[330602789,1719609092717,-788.02,0.00026027,4]
[330602790,1719609092727,-500.0,0.00026027,4]
[330602791,1719609092736,-1280.69,0.00026027,4]
[330602792,1719609092745,-2279.24,0.00026027,4]
[330602793,1719609092754,-500.0,0.00026027,4]
[330602794,1719609092763,-3712.0,0.00026027,4]
[330602795,1719609092772,-4032.61,0.00026027,4]
[330602796,1719609092781,-227.79,0.00026027,4]
[330602797,1719609092790,-1001.0,0.00026027,4]
[330602798,1719609092799,-2069.86,0.00026027,4]
[330602799,1719609092808,-5418.01,0.00026027,4]
[330602800,1719609092817,-826.19,0.00026027,4]
[330602801,1719609092826,-803.14,0.00026027,4]
[330602802,1719609092835,-939.69,0.00026027,4]
[330602803,1719609092844,-60694.4,0.00026027,4]
[330602804,1719609092853,-2175.07,0.00026027,4]
[330602805,1719609092862,-3733.28,0.00026027,4]
[330602806,1719609092872,-7121.33,0.00026027,4]
[330602807,1719609092881,-500.0,0.00026027,4]
[330602808,1719609092890,-521.59,0.00026027,4]
[330602809,1719609092900,-4094.82,0.00026027,4]
[330602810,1719609092909,-582.3,0.00026027,4]
[330602811,1719609092919,-834.09,0.00026027,4]
[330602812,1719609092927,-689.13,0.00026027,4]
[330602813,1719609092937,-1575.66,0.00026027,4]
[330602814,1719609092946,-1770.99,0.00026027,4]
[330602815,1719609092955,-12345.82,0.00026027,4]
[330602816,1719609092965,-651.08,0.00026027,4]
[330602817,1719609092980,-500.0,0.00026027,4]
[330602818,1719609092988,-1018.4,0.00026027,4]
[330602819,1719609092997,-500.0,0.00026027,4]
[330602820,1719609093009,-2468.56,0.00026027,4]
[330602821,1719609093022,-12723.98,0.00026027,4]
[330602822,1719609093032,-500.0,0.00026027,4]
[330602823,1719609093041,-1210.66,0.00026027,4]
[330602824,1719609093050,-500.0,0.00026027,2]
[330602825,1719609093062,-923.2,0.00026027,4]
[330602826,1719609093072,-2010.28,0.00026027,4]
[330602827,1719609093082,-4814.91,0.00026027,4]
[330602828,1719609093091,-11513.48,0.00026027,4]
[330602829,1719609093104,-506.2,0.00026027,4]
[330602830,1719609093136,-10418.44,0.00026027,4]
[330602831,1719609093146,-500.0,0.00026027,4]
[330602832,1719609093155,-500.0,0.00026027,4]
[330602833,1719609093165,-1813.93,0.00026027,4]
[330602834,1719609093174,-959.34,0.00026027,4]
[330602835,1719609093183,-1894.29,0.00026027,4]
[330602836,1719609093194,-655.11,0.00026027,4]
[330602837,1719609093203,-500.0,0.00026027,4]
[330602838,1719609093213,-1715.47,0.00026027,4]
[330602839,1719609093226,-1262.66,0.00026027,4]
[330602840,1719609093235,-761.05,0.00026027,4]
[330602841,1719609093244,-535.3,0.00026027,4]
[330602842,1719609093253,-1055.6,0.00026027,4]
[330602843,1719609093262,-1710.79,0.00026027,4]
[330602844,1719609093271,-2194.15,0.00026027,4]
[330602845,1719609093280,-500.0,0.00026027,4]
[330602846,1719609093290,-979.7,0.00026027,4]
[330602847,1719609093299,-528.59,0.00026027,4]
[330602848,1719609093308,-628.71,0.00026027,4]
[330602849,1719609093318,-750.32,0.00026027,4]
[330602850,1719609093327,-500.0,0.00026027,4]
[330602851,1719609093336,-586.77,0.00026027,4]
[330602852,1719609093345,-1021.86,0.00026027,4]
[330602853,1719609093355,-500.0,0.00026027,4]
[330602854,1719609093365,-10772.11,0.00026027,4]
[330602855,1719609093375,-740.26,0.00026027,4]
[330602856,1719609093384,-1018.02,0.00026027,4]
[330602857,1719609093393,-3099.44,0.00026027,4]
[330602858,1719609093403,-669.76,0.00026027,4]
[330602859,1719609093413,-600.27,0.00026027,4]
[330602860,1719609093422,-500.0,0.00026027,4]
[330602861,1719609093431,-4038.76,0.00026027,4]
[330602862,1719609093441,-546.35,0.00026027,4]
[330602863,1719609093450,-2850.21,0.00026027,4]
[330602864,1719609093459,-1461.16,0.00026027,4]
[330602865,1719609093472,-500.0,0.00026027,4]
[330602866,1719609093480,-4987.38,0.00026027,4]
[330602867,1719609093490,-207.99287617,0.00026027,4]
[330602868,1719609093499,-3352.17,0.00026027,4]
[330602869,1719609093508,-621.88,0.00026027,4]
[330602870,1719609093519,-683.47,0.00026027,4]
[330602871,1719609093528,-1525.02,0.00026027,4]
[330602872,1719609093538,-23476.31,0.00026027,4]
[330602873,1719609093548,-500.0,0.00026027,4]
[330602874,1719609093557,-6462.45,0.00026027,4]
[330602875,1719609093567,-500.0,0.00026027,4]
[330602876,1719609093577,-9156.13,0.00026027,4]
[330602877,1719609093586,-1587.41,0.00026027,4]
[330602878,1719609093595,-500.0,0.00026027,4]
[330602879,1719609093605,-2718.89,0.00026027,4]
[330602880,1719609093615,-750.0,0.00026079,2]
[330602881,1719609093624,-620.00000002,0.00026215,2]
[330602882,1719609093633,-6356.54,0.00026301,4]
[330602883,1719609093643,-500.0,0.00026301,2]
[330602884,1719609093653,-1053.33,0.00026301,4]
[330602885,1719609093663,-500.0,0.00026301,4]
[330602886,1719609093673,-581.35,0.00026301,4]
[330602887,1719609093681,-2317.09,0.00026301,4]
[330602888,1719609093691,-922.96,0.00026301,4]
[330602889,1719609093700,-834.68,0.00026301,4]
[330602890,1719609093723,-500.0,0.00026301,4]
[330602891,1719609093733,-500.0,0.00026301,4]
[330602892,1719609093743,-803.38,0.00026301,4]
[330602893,1719609093752,-586.68209247,0.00026301,4]
[330602894,1719609093763,-1513.65,0.00026301,4]
[330602895,1719609093772,-969.26,0.00026301,4]
[330602896,1719609093782,-1279.12,0.00026301,4]
[330602897,1719609093791,-580.44,0.00026301,4]
[330602898,1719609093801,-750.55,0.00026301,4]
[330602899,1719609093810,-527.85,0.00026301,4]
[330602900,1719609093820,-762.9,0.00026301,4]
[330602901,1719609093830,-500.0,0.00026301,4]
[330602902,1719609093839,-500.0,0.00026301,4]
[330602903,1719609093849,-794.3,0.00026301,4]
[330602904,1719609093858,-500.0,0.00026301,4]
[330602905,1719609093868,-526.04,0.00026301,4]
[330602906,1719609093877,-819.47,0.00026301,4]
[330602907,1719609093887,-905.98,0.00026301,4]
[330602908,1719609093896,-500.0,0.00026301,4]
[330602909,1719609093906,-1589.77,0.00026301,4]
[330602910,1719609093916,-1414.16,0.00026301,4]
[330602911,1719609093925,-514.41,0.00026301,4]
[330602912,1719609093936,-591.95537285,0.00026301,4]
[330602913,1719609093945,-549.62,0.00026301,4]
[330602914,1719609093955,-1020.77,0.00026301,4]
[330602915,1719609093964,-2333.86,0.00026301,4]
[330602916,1719609093977,-718.41,0.00026301,4]
[330602917,1719609094146,-632.14,0.00026301,4]
[330602918,1719609094156,-2254.28,0.00026301,4]
[330602919,1719609094164,-1134.77,0.00026301,4]
[330602920,1719609094174,-552.34,0.00026301,4]
[330602921,1719609094183,-655.59,0.00026301,4]
[330602922,1719609094193,-500.0,0.00026301,4]
[330602923,1719609094203,-397.70282133,0.00026301,4]
[330602924,1719609094212,-1584.44,0.00026301,4]
[330602925,1719609094224,-705.63,0.00026301,4]
[330602926,1719609094233,-992.69,0.00026301,4]
[330602927,1719609094242,-963.94,0.00026301,4]
[330602928,1719609094251,-2618.52,0.00026301,4]
[330602929,1719609094260,-775.03,0.00026301,4]
[330602930,1719609094270,-500.0,0.00026301,4]
[330602931,1719609094279,-1047.09,0.00026301,4]
[330602932,1719609094288,-597.64,0.00026301,4]
[330602933,1719609094297,-500.0,0.00026301,4]
[330602934,1719609094306,-619.46,0.00026301,4]
[330602935,1719609094315,-1602.1,0.00026301,4]
[330602936,1719609094324,-500.0,0.00026301,4]
[330602937,1719609094334,-1252.86,0.00026301,4]
[330602938,1719609094343,-748.7,0.00026301,4]
[330602939,1719609094352,-725.68,0.00026301,4]
[330602940,1719609094361,-3105.39,0.00026301,4]
[330602941,1719609094371,-500.0,0.00026301,4]
[330602942,1719609094380,-1391.86,0.00026301,4]
[330602943,1719609094389,-500.0,0.00026301,4]
[330602944,1719609094398,-1221.39,0.00026301,4]
[330602945,1719609094407,-598.89,0.00026301,4]
[330602946,1719609094416,-761.97,0.00026301,4]
[330602947,1719609094425,-500.0,0.00026301,4]
[330602948,1719609094434,-1916.95,0.00026301,4]
[330602949,1719609094443,-516.15350888,0.00026301,4]
[330602950,1719609094452,-911.28,0.00026301,4]
[330602951,1719609094461,-279.76738262,0.00026301,4]
[330602952,1719609094471,-500.0,0.00026301,4]
[330602953,1719609094480,-1274.5,0.00026301,2]
[330602954,1719609094489,-786.07,0.00026301,4]
[330602955,1719609094499,-2096.46,0.00026301,4]
[330602956,1719609094508,-1472.43,0.00026301,4]
[330602957,1719609094517,-3430.95,0.00026301,4]
[330602958,1719609094527,-424.32866165,0.00026301,4]
[330602959,1719609094536,-713.1,0.00026301,4]
[330602960,1719609094545,-1080.39,0.00026301,4]
[330602961,1719609094555,-32522.18,0.00026301,4]
[330602962,1719609094564,-2759.26,0.00026301,4]
[330602963,1719609094573,-1561.25,0.00026301,4]
[330602964,1719609094582,-1056.09,0.00026301,4]
[330602965,1719609094591,-626.89,0.00026301,4]
[330602966,1719609094600,-644.23,0.00026301,4]
[330602967,1719609094609,-919.74,0.00026301,4]
[330602968,1719609094618,-526.73,0.00026301,4]
[330602969,1719609094627,-500.0,0.00026301,4]
[330602970,1719609094636,-900.52,0.00026301,4]
[330602971,1719609094645,-2915.15,0.00026301,4]
[330602972,1719609094655,-1075.26,0.00026301,4]
[330602973,1719609094664,-898.0,0.00026301,4]
[330602974,1719609094674,-2606.56,0.00026301,4]
[330602975,1719609094682,-1017.0,0.00026301,4]
[330602976,1719609094691,-500.0,0.00026301,4]
[330602977,1719609094700,-769.17,0.00026301,4]
[330602978,1719609094710,-724.43,0.00026301,4]
[330602979,1719609094721,-500.0,0.00026301,4]
[330602980,1719609094730,-1811.19,0.00026301,4]
[330602981,1719609094740,-555.14,0.00026301,4]
[330602982,1719609094749,-745.75,0.00026301,4]
[330602983,1719609094758,-1060.47,0.00026301,4]
[330602984,1719609094768,-1646.45,0.00026301,4]
[330602985,1719609094777,-561.23,0.00026301,4]
[330602986,1719609094787,-1636.48,0.00026301,4]
[330602987,1719609094796,-2903.41,0.00026301,4]
[330602988,1719609094806,-500.0,0.00026301,4]
[330602989,1719609094815,-1643.03,0.00026301,4]
[330602990,1719609094824,-882.01,0.00026301,4]
[330602991,1719609094832,-23113.58,0.00026301,4]
[330602992,1719609094848,-628.52,0.00026301,4]
[330602993,1719609094867,-1414.53,0.00026301,4]
[330602994,1719609094887,-500.0,0.00026301,4]
[330602995,1719609094908,-500.0,0.00026301,4]
[330602996,1719609094922,-500.0,0.00026301,4]
[330602997,1719609094944,-555.85,0.00026301,4]
[330602998,1719609094963,-11320.71,0.00026301,4]
[330602999,1719609094982,-644.76,0.00026301,4]
[330603000,1719609095000,-585.25,0.00026301,4]
[330603001,1719609095023,-756.94,0.00026301,4]
[330603002,1719609095041,-1188.67,0.00026301,4]
[330603003,1719609095057,-788.02,0.00026301,4]
[330603004,1719609095076,-500.0,0.00026301,4]
[330603005,1719609095088,-1280.69,0.00026301,4]
[330603006,1719609095106,-2279.24,0.00026301,4]
[330603007,1719609095122,-500.0,0.00026301,4]
[330603008,1719609095137,-3712.0,0.00026301,4]
[330603009,1719609095152,-4032.61,0.00026301,4]
[330603010,1719609095167,-227.79,0.00026301,4]
[330603011,1719609095181,-1001.0,0.00026301,4]
[330603012,1719609095196,-2069.86,0.00026301,4]
[330603013,1719609095211,-5418.01,0.00026301,4]
[330603014,1719609095226,-826.19,0.00026301,4]
[330603015,1719609095242,-803.14,0.00026301,4]
[330603016,1719609095257,-939.69,0.00026301,4]
[330603017,1719609095272,-60694.4,0.00026301,4]
[330603018,1719609095286,-2175.07,0.00026301,4]
[330603019,1719609095301,-3733.28,0.00026301,4]
[330603020,1719609095316,-7121.33,0.00026301,4]
[330603021,1719609095330,-500.0,0.00026301,4]
[330603022,1719609095345,-521.59,0.00026301,4]
[330603023,1719609095361,-4094.82,0.00026301,4]
[330603024,1719609095375,-582.3,0.00026301,4]
[330603025,1719609095390,-834.09,0.00026301,4]
[330603026,1719609095404,-689.13,0.00026301,4]
[330603027,1719609095418,-1575.66,0.00026301,4]
[330603028,1719609095432,-1770.99,0.00026301,4]
[330603029,1719609095447,-12345.82,0.00026301,4]
[330603030,1719609095460,-651.08,0.00026301,4]
[330603031,1719609095475,-500.0,0.00026301,4]
[330603032,1719609095489,-500.0,0.00026301,4]
[330603033,1719609095503,-1018.4,0.00026301,4]
[330603034,1719609095517,-2468.56,0.00026301,4]
[330603035,1719609095532,-12723.98,0.00026301,4]
[330603036,1719609095547,-543.50034508,0.00026301,4]
[330603037,1719609095562,-1210.66,0.00026301,4]
[330603038,1719609095576,-500.0,0.00026301,2]
[330603039,1719609095591,-923.2,0.00026301,4]
[330603040,1719609095604,-2010.28,0.00026301,4]
[330603041,1719609095619,-4814.91,0.00026301,4]
[330603042,1719609095633,-11513.48,0.00026301,4]
[330603043,1719609095647,-506.2,0.00026301,4]
[330603044,1719609095661,-10418.44,0.00026301,4]
[330603045,1719609095675,-500.0,0.00026301,4]
[330603046,1719609095688,-500.0,0.00026301,4]
[330603047,1719609095704,-959.34,0.00026301,4]
[330603048,1719609095717,-655.11,0.00026301,4]
[330603049,1719609095732,-1894.29,0.00026301,4]
[330603050,1719609095746,-500.0,0.00026301,4]
[330603051,1719609095759,-1813.93,0.00026301,4]
[330603052,1719609095774,-1715.47,0.00026301,4]
[330603053,1719609095787,-1262.66,0.00026301,4]
[330603054,1719609095801,-761.05,0.00026301,4]
[330603055,1719609095816,-535.3,0.00026301,4]
[330603056,1719609095829,-1055.6,0.00026301,4]
[330603057,1719609095842,-1710.79,0.00026301,4]
[330603058,1719609095857,-2194.15,0.00026301,4]
[330603059,1719609095871,-500.0,0.00026301,4]
[330603060,1719609095885,-979.7,0.00026301,4]
[330603061,1719609095900,-528.59,0.00026301,4]
[330603062,1719609095914,-628.71,0.00026301,4]
[330603063,1719609095928,-750.32,0.00026301,4]
[330603064,1719609095943,-443.8364317,0.00026301,4]
[330603065,1719609095958,-586.77,0.00026301,4]
[330603066,1719609096118,-1021.86,0.00026301,4]
[330603067,1719609096133,-500.0,0.00026301,4]
[330603068,1719609096143,-10772.11,0.00026301,4]
[330603069,1719609096153,-740.26,0.00026301,4]
[330603070,1719609096162,-1018.02,0.00026301,4]
[330603071,1719609096171,-3099.44,0.00026301,4]
[330603072,1719609096180,-669.76,0.00026301,4]
[330603073,1719609096190,-600.27,0.00026301,4]
[330603074,1719609096199,-500.0,0.00026301,4]
[330603075,1719609096209,-546.35,0.00026301,4]
[330603076,1719609096218,-4038.76,0.00026301,4]
[330603077,1719609096227,-500.0,0.00026301,4]
[330603078,1719609096236,-4987.38,0.00026301,4]
[330603079,1719609096245,-1461.16,0.00026301,4]
[330603080,1719609096255,-2850.21,0.00026301,4]
[330603081,1719609096264,-3352.17,0.00026301,4]
[330603082,1719609096273,-621.88,0.00026301,4]
[330603083,1719609096282,-683.47,0.00026301,4]
[330603084,1719609096292,-1525.02,0.00026301,4]
[330603085,1719609096301,-23476.31,0.00026301,4]
[330603086,1719609096310,-500.0,0.00026301,4]
[330603087,1719609096320,-6462.45,0.00026301,4]
[330603088,1719609096329,-500.0,0.00026301,4]
[330603089,1719609096339,-9156.13,0.00026301,4]
[330603090,1719609096348,-1587.41,0.00026301,4]
[330603091,1719609096358,-500.0,0.00026301,4]
[330603092,1719609096370,-2718.89,0.00026301,4]
[330603093,1719609096380,-444.0,0.00026388,2]
[330603094,1719609096389,-312.0,0.00026388,2]
[330603095,1719609096398,-246.296333,0.00026436,2]
[330603096,1719609096407,-162.125942,0.00026436,2]
[330603097,1719609096417,-195.968576,0.00026436,2]
[330603098,1719609096426,-449.45145023,0.00026475,2]
[330603099,1719609096435,-7458.94652043,0.0002649,2]
[330603100,1719609096445,-3000.0,0.000265,2]
[330603101,1719609096455,-3000.0,0.0002651,2]
[330603102,1719609096465,-3000.0,0.0002652,2]
[330603103,1719609096474,-3000.0,0.0002653,2]
[330603104,1719609096484,-3000.0,0.0002654,2]
[330603105,1719609096494,-3000.0,0.0002655,2]
[330603106,1719609096504,-3000.0,0.0002656,2]
[330603107,1719609096514,-3000.0,0.0002657,2]
[330603108,1719609096523,-6356.54,0.00026575,4]
[330603109,1719609096533,-500.0,0.00026575,2]
[330603110,1719609096542,-1053.33,0.00026575,4]
[330603111,1719609096551,-500.0,0.00026575,4]
[330603112,1719609096561,-581.35,0.00026575,4]
[330603113,1719609096571,-2317.09,0.00026575,4]
[330603114,1719609096581,-922.96,0.00026575,4]
[330603115,1719609096591,-834.68,0.00026575,4]
[330603116,1719609096600,-395.01228076,0.00026575,4]
[330603117,1719609096609,-338.27109496,0.00026575,4]
[330603118,1719609096619,-803.38,0.00026575,4]
[330603119,1719609096628,-1513.65,0.00026575,4]
[330603120,1719609096638,-969.26,0.00026575,4]
[330603121,1719609096647,-1279.12,0.00026575,4]
[330603122,1719609096656,-580.44,0.00026575,4]
[330603123,1719609096665,-750.55,0.00026575,4]
[330603124,1719609096675,-527.85,0.00026575,4]
[330603125,1719609096685,-762.9,0.00026575,4]
[330603126,1719609096694,-577.54851015,0.00026575,4]
[330603127,1719609096703,-500.0,0.00026575,4]
[330603128,1719609096712,-794.3,0.00026575,4]
[330603129,1719609096725,-563.04,0.00026575,4]
[330603130,1719609096735,-819.47,0.00026575,4]
[330603131,1719609096744,-526.04,0.00026575,4]
[330603132,1719609096754,-905.98,0.00026575,4]
[330603133,1719609096764,-500.0,0.00026575,4]
[330603134,1719609096774,-1589.77,0.00026575,4]
[330603135,1719609096783,-1414.16,0.00026575,4]
[330603136,1719609096792,-514.41,0.00026575,4]
[330603137,1719609096802,-549.62,0.00026575,4]
[330603138,1719609096811,-1020.77,0.00026575,4]
[330603139,1719609096821,-2333.86,0.00026575,4]
[330603140,1719609096831,-718.41,0.00026575,4]
[330603141,1719609096840,-632.14,0.00026575,4]
[330603142,1719609096849,-2254.28,0.00026575,4]
[330603143,1719609096858,-1134.77,0.00026575,4]
[330603144,1719609096868,-552.34,0.00026575,4]
[330603145,1719609096877,-655.59,0.00026575,4]
[330603146,1719609096887,-500.0,0.00026575,4]
[330603147,1719609096895,-1584.44,0.00026575,4]
[330603148,1719609096905,-705.63,0.00026575,4]
[330603149,1719609096914,-992.69,0.00026575,4]
[330603150,1719609096924,-963.94,0.00026575,4]
[330603151,1719609096933,-2618.52,0.00026575,4]
[330603152,1719609096943,-775.03,0.00026575,4]
[330603153,1719609096952,-500.0,0.00026575,4]
[330603154,1719609096962,-1047.09,0.00026575,4]
[330603155,1719609096971,-597.64,0.00026575,4]
[330603156,1719609096980,-634.40002844,0.00026575,4]
[330603157,1719609096990,-619.46,0.00026575,4]
[330603158,1719609096999,-1602.1,0.00026575,4]
[330603159,1719609097011,-500.0,0.00026575,4]